[Event "Late-Titled-Tuesday-Blitz-February-06-2024"]
[Site "Chess.com"]
[Date "2024.02.06"]
[Round "2"]
[White "IraZyne"]
[Black "FrenchHarvey"]
[Result "0-1"]
[WhiteElo "2327"]
[BlackElo "2694"]
[TimeControl "180+1"]
[EndTime "14:15:43 PST"]
[Termination "FrenchHarvey won by resignation"]

1. e4 {[%clk 0:02:56]} 1... c5 {[%clk 0:02:58]} 2. Nc3 {[%clk 0:02:55.3]} 2...
Nc6 {[%clk 0:02:57.3]} 3. g3 {[%clk 0:02:55.5]} 3... g6 {[%clk 0:02:58]} 4. Bg2
{[%clk 0:02:55.5]} 4... Bg7 {[%clk 0:02:58.7]} 5. d3 {[%clk 0:02:54.9]} 5... d6
{[%clk 0:02:59.2]} 6. Nge2 {[%clk 0:02:54.3]} 6... Rb8 {[%clk 0:02:58.2]} 7. O-O
{[%clk 0:02:53.1]} 7... b5 {[%clk 0:02:58.6]} 8. a3 {[%clk 0:02:48.6]} 8... h5
{[%clk 0:02:57.2]} 9. h3 {[%clk 0:02:48]} 9... Nd4 {[%clk 0:02:54.8]} 10. Be3
{[%clk 0:02:46.7]} 10... e5 {[%clk 0:02:48.9]} 11. f4 {[%clk 0:02:44.4]} 11...
exf4 {[%clk 0:02:48]} 12. Nxf4 {[%clk 0:02:43.5]} 12... Ne7 {[%clk 0:02:46.4]}
13. Qd2 {[%clk 0:02:40.5]} 13... O-O {[%clk 0:02:39.6]} 14. Ncd5 {[%clk
0:02:40.4]} 14... Nxd5 {[%clk 0:02:39.4]} 15. Nxd5 {[%clk 0:02:39.5]} 15... Be6
{[%clk 0:02:40]} 16. Bg5 {[%clk 0:02:38]} 16... f6 {[%clk 0:02:36.3]} 17. Bh6
{[%clk 0:02:34.7]} 17... Bxd5 {[%clk 0:02:36.4]} 18. Bxg7 {[%clk 0:02:33.2]}
18... Kxg7 {[%clk 0:02:36.5]} 19. exd5 {[%clk 0:02:33.1]} 19... Re8 {[%clk
0:02:37.1]} 20. Rae1 {[%clk 0:02:29.5]} 20... Qd7 {[%clk 0:02:37.2]} 21. c3
{[%clk 0:02:28.4]} 21... Nf5 {[%clk 0:02:36.2]} 22. Qf4 {[%clk 0:02:26.9]} 22...
Rxe1 {[%clk 0:02:29.8]} 23. Rxe1 {[%clk 0:02:26.5]} 23... Re8 {[%clk 0:02:30.4]}
24. Re4 {[%clk 0:02:26.1]} 24... Re5 {[%clk 0:02:20.5]} 25. Kh2 {[%clk
0:02:06.1]} 25... h4 {[%clk 0:02:17.7]} 26. gxh4 {[%clk 0:02:02.4]} 26... Ne7
{[%clk 0:02:15.5]} 27. Rxe5 {[%clk 0:01:56.8]} 27... fxe5 {[%clk 0:02:14.5]} 28.
Qg4 {[%clk 0:01:55.2]} 28... Qf5 {[%clk 0:02:07.4]} 29. Be4 {[%clk 0:01:52.4]}
29... Qf2+ {[%clk 0:02:05.5]} 30. Qg2 {[%clk 0:01:52.4]} 30... Qf4+ {[%clk
0:02:05.5]} 31. Qg3 {[%clk 0:01:51.2]} 31... Kf6 {[%clk 0:02:03]} 32. Kg2 {[%clk
0:01:43.5]} 32... Qxg3+ {[%clk 0:01:47.5]} 33. Kxg3 {[%clk 0:01:43.3]} 33... Nc8
{[%clk 0:01:47.8]} 34. Kg4 {[%clk 0:01:39.9]} 34... Nb6 {[%clk 0:01:46.3]} 35.
h5 {[%clk 0:01:39.6]} 35... gxh5+ {[%clk 0:01:45.8]} 36. Kxh5 {[%clk 0:01:39.8]}
36... Na4 {[%clk 0:01:46.7]} 37. Kg4 {[%clk 0:01:36]} 37... Nxb2 {[%clk
0:01:46.4]} 38. h4 {[%clk 0:01:35]} 38... Nd1 {[%clk 0:01:46.2]} 39. h5 {[%clk
0:01:25.6]} 39... Nxc3 {[%clk 0:01:45.9]} 40. h6 {[%clk 0:01:25.4]} 40... Nxe4
{[%clk 0:01:46.2]} 41. dxe4 {[%clk 0:01:23.9]} 41... Kg6 {[%clk 0:01:46.3]} 42.
h7 {[%clk 0:01:19.7]} 42... Kxh7 {[%clk 0:01:46.3]} 43. Kf5 {[%clk 0:01:19.9]}
43... c4 {[%clk 0:01:46.8]} 44. Ke6 {[%clk 0:01:19.9]} 44... c3 {[%clk
0:01:47.4]} 45. Kxd6 {[%clk 0:01:20.1]} 45... c2 {[%clk 0:01:48.1]} 46. Ke7
{[%clk 0:01:20.4]} 46... c1=Q {[%clk 0:01:48.3]} 47. d6 {[%clk 0:01:20.7]} 47...
Qxa3 {[%clk 0:01:47.2]} 0-1

[Event "Late-Titled-Tuesday-Blitz-February-06-2024"]
[Site "Chess.com"]
[Date "2024.02.06"]
[Round "2"]
[White "javierfreilemartin"]
[Black "subham777"]
[Result "0-1"]
[WhiteElo "2313"]
[BlackElo "2530"]
[TimeControl "180+1"]
[EndTime "14:15:45 PST"]
[Termination "subham777 won by resignation"]

1. c4 {[%clk 0:03:00.9]} 1... e6 {[%clk 0:02:59]} 2. Nc3 {[%clk 0:03:00.5]} 2...
d5 {[%clk 0:02:58.3]} 3. d4 {[%clk 0:03:00]} 3... Nf6 {[%clk 0:02:58.2]} 4. Bg5
{[%clk 0:02:59.7]} 4... Be7 {[%clk 0:02:57]} 5. e3 {[%clk 0:02:59.9]} 5... O-O
{[%clk 0:02:57]} 6. Qc2 {[%clk 0:02:57.4]} 6... h6 {[%clk 0:02:55.3]} 7. Bh4
{[%clk 0:02:56.8]} 7... b6 {[%clk 0:02:52.7]} 8. Nf3 {[%clk 0:02:56.5]} 8... Bb7
{[%clk 0:02:52.4]} 9. Bxf6 {[%clk 0:02:55.9]} 9... Bxf6 {[%clk 0:02:52.2]} 10.
cxd5 {[%clk 0:02:56.6]} 10... exd5 {[%clk 0:02:51.5]} 11. Be2 {[%clk 0:02:57.2]}
11... Nd7 {[%clk 0:02:50.8]} 12. O-O {[%clk 0:02:57]} 12... c5 {[%clk 0:02:51]}
13. Rfd1 {[%clk 0:02:56.9]} 13... Rc8 {[%clk 0:02:48.7]} 14. Rac1 {[%clk
0:02:55.8]} 14... cxd4 {[%clk 0:02:48.1]} 15. Nxd4 {[%clk 0:02:54.8]} 15... Qe7
{[%clk 0:02:44.4]} 16. Bg4 {[%clk 0:02:53.8]} 16... Rfd8 {[%clk 0:02:32]} 17.
Qb3 {[%clk 0:02:40.9]} 17... Nc5 {[%clk 0:02:20.8]} 18. Qa3 {[%clk 0:02:40.9]}
18... Ra8 {[%clk 0:02:17.3]} 19. b4 {[%clk 0:02:38.1]} 19... Ne4 {[%clk
0:02:14.4]} 20. Nxe4 {[%clk 0:02:36.4]} 20... dxe4 {[%clk 0:02:13.2]} 21. Nf5
{[%clk 0:02:24.8]} 21... Qe5 {[%clk 0:02:03.4]} 22. b5 {[%clk 0:02:21.4]} 22...
Rxd1+ {[%clk 0:01:47.7]} 23. Rxd1 {[%clk 0:02:20.5]} 23... Bc8 {[%clk
0:01:39.9]} 24. Nxh6+ {[%clk 0:00:56.1]} 24... gxh6 {[%clk 0:01:37.4]} 25. Bxc8
{[%clk 0:00:56.8]} 25... Rxc8 {[%clk 0:01:33.9]} 26. Qxa7 {[%clk 0:00:57.4]}
26... Qd6 {[%clk 0:01:28]} 27. g3 {[%clk 0:00:55.7]} 27... Qxd1+ {[%clk
0:01:27.4]} 0-1

[Event "Late-Titled-Tuesday-Blitz-February-06-2024"]
[Site "Chess.com"]
[Date "2024.02.06"]
[Round "2"]
[White "pfalcon1949"]
[Black "Balla_Tamas"]
[Result "0-1"]
[WhiteElo "1957"]
[BlackElo "2418"]
[TimeControl "180+1"]
[EndTime "14:15:45 PST"]
[Termination "Balla_Tamas won by resignation"]

1. e4 {[%clk 0:03:00.9]} 1... c5 {[%clk 0:02:56.1]} 2. Nf3 {[%clk 0:03:00.6]}
2... Nc6 {[%clk 0:02:56.5]} 3. d4 {[%clk 0:03:00.6]} 3... cxd4 {[%clk
0:02:57.4]} 4. Nxd4 {[%clk 0:03:00.5]} 4... e5 {[%clk 0:02:57.2]} 5. Nb5 {[%clk
0:02:59.7]} 5... d6 {[%clk 0:02:56.3]} 6. N1c3 {[%clk 0:02:59.5]} 6... a6 {[%clk
0:02:52.5]} 7. Na3 {[%clk 0:02:58.1]} 7... b5 {[%clk 0:02:52.8]} 8. Nd5 {[%clk
0:02:52.3]} 8... Nge7 {[%clk 0:02:48.7]} 9. Bg5 {[%clk 0:02:48.1]} 9... h6
{[%clk 0:02:46.5]} 10. Bh4 {[%clk 0:02:41.4]} 10... Be6 {[%clk 0:02:34.4]} 11.
c4 {[%clk 0:02:35.6]} 11... Bxd5 {[%clk 0:02:23.1]} 12. exd5 {[%clk 0:02:15.9]}
12... Nd4 {[%clk 0:02:23]} 13. Qd2 {[%clk 0:02:05.9]} 13... g5 {[%clk
0:02:05.6]} 14. Bg3 {[%clk 0:02:01.9]} 14... Bg7 {[%clk 0:02:05.7]} 15. cxb5
{[%clk 0:01:57.4]} 15... f5 {[%clk 0:02:03.9]} 16. f3 {[%clk 0:01:55.4]} 16...
O-O {[%clk 0:02:00.4]} 17. Bc4 {[%clk 0:01:51.6]} 17... axb5 {[%clk 0:01:59.7]}
18. Nxb5 {[%clk 0:01:50.4]} 18... Nxb5 {[%clk 0:01:50.6]} 19. Bxb5 {[%clk
0:01:48]} 19... e4 {[%clk 0:01:51.1]} 20. fxe4 {[%clk 0:01:25.4]} 20... fxe4
{[%clk 0:01:47.1]} 21. Rf1 {[%clk 0:01:24.9]} 21... Nf5 {[%clk 0:01:43.2]} 22.
Bc6 {[%clk 0:01:07.1]} 22... Rb8 {[%clk 0:01:41]} 23. O-O-O {[%clk 0:01:03.4]}
23... Bxb2+ {[%clk 0:01:37.5]} 24. Qxb2 {[%clk 0:00:57.5]} 24... Rxb2 {[%clk
0:01:37.2]} 25. Kxb2 {[%clk 0:00:57.4]} 25... Nxg3 {[%clk 0:01:37.2]} 26. hxg3
{[%clk 0:00:56.4]} 26... Qb6+ {[%clk 0:01:35.8]} 27. Ka1 {[%clk 0:00:52.1]}
27... Rxf1 {[%clk 0:01:34.3]} 28. Rxf1 {[%clk 0:00:51.2]} 28... Qd4+ {[%clk
0:01:35]} 0-1

[Event "Late-Titled-Tuesday-Blitz-February-06-2024"]
[Site "Chess.com"]
[Date "2024.02.06"]
[Round "2"]
[White "Harsha_Bharathakoti"]
[Black "KChor05"]
[Result "1-0"]
[WhiteElo "2910"]
[BlackElo "2600"]
[TimeControl "180+1"]
[EndTime "14:15:52 PST"]
[Termination "Harsha_Bharathakoti won by resignation"]

1. Nf3 {[%clk 0:03:00.9]} 1... c5 {[%clk 0:03:00.1]} 2. c4 {[%clk 0:03:00.1]}
2... Nf6 {[%clk 0:03:00.4]} 3. Nc3 {[%clk 0:02:59.9]} 3... e6 {[%clk 0:03:00.8]}
4. g3 {[%clk 0:02:56.4]} 4... Be7 {[%clk 0:03:00.7]} 5. Bg2 {[%clk 0:02:56.6]}
5... O-O {[%clk 0:03:01.6]} 6. O-O {[%clk 0:02:57]} 6... Nc6 {[%clk 0:03:02]} 7.
d4 {[%clk 0:02:56.4]} 7... cxd4 {[%clk 0:03:00.5]} 8. Nxd4 {[%clk 0:02:56]} 8...
a6 {[%clk 0:02:57.8]} 9. b3 {[%clk 0:02:50.5]} 9... Qc7 {[%clk 0:02:58]} 10. Bb2
{[%clk 0:02:50.3]} 10... d6 {[%clk 0:02:57.4]} 11. Rc1 {[%clk 0:02:49.9]} 11...
Bd7 {[%clk 0:02:57.7]} 12. Nd5 {[%clk 0:02:47]} 12... Qd8 {[%clk 0:02:43]} 13.
Nxe7+ {[%clk 0:02:44.3]} 13... Qxe7 {[%clk 0:02:43.9]} 14. Qd2 {[%clk
0:02:41.8]} 14... Nxd4 {[%clk 0:02:41.7]} 15. Qxd4 {[%clk 0:02:41.3]} 15... Bc6
{[%clk 0:02:38.9]} 16. e4 {[%clk 0:02:30.9]} 16... Rfd8 {[%clk 0:02:29.4]} 17.
Rfd1 {[%clk 0:02:30.9]} 17... e5 {[%clk 0:02:23.5]} 18. Qe3 {[%clk 0:02:27.3]}
18... a5 {[%clk 0:02:19.4]} 19. f3 {[%clk 0:02:19.4]} 19... Nd7 {[%clk
0:02:18.5]} 20. Rd2 {[%clk 0:02:08.8]} 20... Nc5 {[%clk 0:02:15.2]} 21. Bf1
{[%clk 0:02:04]} 21... Rf8 {[%clk 0:02:05.6]} 22. Rcd1 {[%clk 0:01:50.2]} 22...
Rad8 {[%clk 0:02:03.5]} 23. Bh3 {[%clk 0:01:37.7]} 23... b6 {[%clk 0:01:58.3]}
24. a3 {[%clk 0:01:31.7]} 24... g6 {[%clk 0:01:53.4]} 25. b4 {[%clk 0:01:31.8]}
25... axb4 {[%clk 0:01:54.3]} 26. axb4 {[%clk 0:01:32.7]} 26... Na4 {[%clk
0:01:51.8]} 27. Ba1 {[%clk 0:01:23.4]} 27... f5 {[%clk 0:01:51.7]} 28. exf5
{[%clk 0:01:23.4]} 28... gxf5 {[%clk 0:01:52.6]} 29. f4 {[%clk 0:01:24.1]} 29...
Be4 {[%clk 0:01:42.3]} 30. c5 {[%clk 0:01:06.2]} 1-0

[Event "Late-Titled-Tuesday-Blitz-February-06-2024"]
[Site "Chess.com"]
[Date "2024.02.06"]
[Round "2"]
[White "familijatop71"]
[Black "dedpihto_v_kozhanom_palto"]
[Result "0-1"]
[WhiteElo "2319"]
[BlackElo "2685"]
[TimeControl "180+1"]
[EndTime "14:16:12 PST"]
[Termination "dedpihto_v_kozhanom_palto won by resignation"]

1. e4 {[%clk 0:03:00.9]} 1... g6 {[%clk 0:02:59.5]} 2. d4 {[%clk 0:02:58]} 2...
Bg7 {[%clk 0:03:00]} 3. Nc3 {[%clk 0:02:58]} 3... d6 {[%clk 0:03:00.4]} 4. f4
{[%clk 0:02:57.9]} 4... Nc6 {[%clk 0:03:00.7]} 5. Nf3 {[%clk 0:02:57.3]} 5...
Bg4 {[%clk 0:03:00.7]} 6. Be3 {[%clk 0:02:55.2]} 6... Bxf3 {[%clk 0:03:01.3]} 7.
gxf3 {[%clk 0:02:55.9]} 7... e5 {[%clk 0:03:01.9]} 8. fxe5 {[%clk 0:02:50.4]}
8... dxe5 {[%clk 0:03:02.8]} 9. d5 {[%clk 0:02:33.8]} 9... Nd4 {[%clk 0:03:03]}
10. Nb5 {[%clk 0:02:13.1]} 10... Nf6 {[%clk 0:02:33.9]} 11. Nxd4 {[%clk
0:02:11.5]} 11... exd4 {[%clk 0:02:34.5]} 12. Bxd4 {[%clk 0:02:09.8]} 12... O-O
{[%clk 0:02:30.3]} 13. Qd2 {[%clk 0:02:02.4]} 13... Nxe4 {[%clk 0:02:12]} 14.
fxe4 {[%clk 0:01:58.5]} 14... Qh4+ {[%clk 0:02:12.6]} 15. Bf2 {[%clk 0:01:58.7]}
15... Qxe4+ {[%clk 0:02:12.2]} 16. Qe3 {[%clk 0:01:43.7]} 16... Qxh1 {[%clk
0:02:09]} 17. O-O-O {[%clk 0:01:44.4]} 17... Qxh2 {[%clk 0:02:05.8]} 18. Kb1
{[%clk 0:01:28.4]} 18... Rfe8 {[%clk 0:02:03.5]} 19. Qf3 {[%clk 0:01:25.1]}
19... Rad8 {[%clk 0:01:56.8]} 20. Bg3 {[%clk 0:01:23.4]} 20... Qg1 {[%clk
0:01:40.2]} 21. Bb5 {[%clk 0:01:14.5]} 21... Qb6 {[%clk 0:01:37.7]} 22. Qb3
{[%clk 0:00:58.3]} 22... Re3 {[%clk 0:01:37.1]} 23. Rd3 {[%clk 0:00:22]} 23...
Rxd3 {[%clk 0:01:36.8]} 24. Qxd3 {[%clk 0:00:21.7]} 24... Qg1+ {[%clk
0:01:27.8]} 0-1

[Event "Late-Titled-Tuesday-Blitz-February-06-2024"]
[Site "Chess.com"]
[Date "2024.02.06"]
[Round "2"]
[White "NowInChess"]
[Black "Perecke"]
[Result "0-1"]
[WhiteElo "2340"]
[BlackElo "2564"]
[TimeControl "180+1"]
[EndTime "14:16:17 PST"]
[Termination "Perecke won by resignation"]

1. e4 {[%clk 0:03:00.9]} 1... c5 {[%clk 0:03:00.1]} 2. d3 {[%clk 0:03:00.9]}
2... g6 {[%clk 0:02:58.7]} 3. g3 {[%clk 0:03:01.1]} 3... Bg7 {[%clk 0:02:59]} 4.
Bg2 {[%clk 0:03:01.7]} 4... e6 {[%clk 0:02:59.9]} 5. f4 {[%clk 0:03:02.1]} 5...
Ne7 {[%clk 0:03:00.7]} 6. Nf3 {[%clk 0:03:02.3]} 6... O-O {[%clk 0:03:01.5]} 7.
O-O {[%clk 0:03:02.3]} 7... Nbc6 {[%clk 0:03:02.3]} 8. c3 {[%clk 0:03:02.2]}
8... b6 {[%clk 0:03:01.6]} 9. Be3 {[%clk 0:03:02.3]} 9... Bb7 {[%clk 0:03:01.9]}
10. d4 {[%clk 0:03:00.6]} 10... Na5 {[%clk 0:02:59.6]} 11. Nbd2 {[%clk
0:02:49.9]} 11... f5 {[%clk 0:02:57.7]} 12. dxc5 {[%clk 0:02:36.5]} 12... fxe4
{[%clk 0:02:56]} 13. Ng5 {[%clk 0:02:36.1]} 13... Nf5 {[%clk 0:02:55.2]} 14. Qe2
{[%clk 0:02:21.9]} 14... Nxe3 {[%clk 0:02:30.8]} 15. Qxe3 {[%clk 0:02:22.8]}
15... bxc5 {[%clk 0:02:31.6]} 16. Ngxe4 {[%clk 0:02:12.6]} 16... d6 {[%clk
0:02:27.9]} 17. Ng5 {[%clk 0:02:02.1]} 17... Bxg2 {[%clk 0:02:24.7]} 18. Qxe6+
{[%clk 0:02:01.8]} 18... Kh8 {[%clk 0:02:24.1]} 19. Kxg2 {[%clk 0:01:57.4]}
19... Qc7 {[%clk 0:02:22.5]} 20. Qh3 {[%clk 0:01:49.1]} 20... h6 {[%clk
0:02:19.3]} 21. Ndf3 {[%clk 0:01:39.8]} 21... Qb7 {[%clk 0:02:15.6]} 22. Ne6
{[%clk 0:01:37.9]} 22... Rfe8 {[%clk 0:02:11.5]} 23. Nxg7 {[%clk 0:01:35.3]}
23... Kxg7 {[%clk 0:02:12.4]} 24. Rfe1 {[%clk 0:01:32]} 24... Nc4 {[%clk
0:02:08.4]} 25. Re6 {[%clk 0:01:24.3]} 25... Nd2 {[%clk 0:02:00.1]} 26. Qg4
{[%clk 0:00:34]} 26... Rxe6 {[%clk 0:01:59]} 27. Qxe6 {[%clk 0:00:33.5]} 27...
Nxf3 {[%clk 0:01:56.1]} 28. Qxd6 {[%clk 0:00:20.5]} 28... Ng5+ {[%clk
0:01:54.1]} 29. Kf1 {[%clk 0:00:16.2]} 29... Qf3+ {[%clk 0:01:52.7]} 30. Ke1
{[%clk 0:00:14.6]} 30... Re8+ {[%clk 0:01:53.2]} 31. Kd2 {[%clk 0:00:15]} 31...
Re2+ {[%clk 0:01:53.3]} 32. Kc1 {[%clk 0:00:15]} 32... Qf1+ {[%clk 0:01:52.4]}
33. Qd1 {[%clk 0:00:15.5]} 33... Re1 {[%clk 0:01:52.6]} 34. Kc2 {[%clk
0:00:14.8]} 34... Rxd1 {[%clk 0:01:52.2]} 35. Rxd1 {[%clk 0:00:15.7]} 35... Qe2+
{[%clk 0:01:52.8]} 36. Rd2 {[%clk 0:00:15.4]} 36... Qe4+ {[%clk 0:01:53.5]} 0-1

[Event "Late-Titled-Tuesday-Blitz-February-06-2024"]
[Site "Chess.com"]
[Date "2024.02.06"]
[Round "2"]
[White "jefferyx"]
[Black "crazy_but_lazy"]
[Result "1-0"]
[WhiteElo "2983"]
[BlackElo "2612"]
[TimeControl "180+1"]
[EndTime "14:16:19 PST"]
[Termination "jefferyx won by resignation"]

1. e4 {[%clk 0:03:00.9]} 1... c5 {[%clk 0:02:53.6]} 2. Nf3 {[%clk 0:03:00.9]}
2... Nc6 {[%clk 0:02:52.7]} 3. Bb5 {[%clk 0:03:00.2]} 3... g6 {[%clk 0:02:52.1]}
4. O-O {[%clk 0:02:58.5]} 4... Bg7 {[%clk 0:02:52.2]} 5. Re1 {[%clk 0:02:58.9]}
5... Nf6 {[%clk 0:02:51.8]} 6. c3 {[%clk 0:02:57.3]} 6... O-O {[%clk 0:02:51]}
7. d4 {[%clk 0:02:57.4]} 7... d5 {[%clk 0:02:50.1]} 8. e5 {[%clk 0:02:57.6]}
8... Ne4 {[%clk 0:02:50.5]} 9. Bxc6 {[%clk 0:02:57.1]} 9... bxc6 {[%clk
0:02:50.6]} 10. Be3 {[%clk 0:02:57.5]} 10... Qb6 {[%clk 0:02:41.2]} 11. Qc1
{[%clk 0:02:57.6]} 11... cxd4 {[%clk 0:02:40.3]} 12. cxd4 {[%clk 0:02:58.5]}
12... Bg4 {[%clk 0:02:27]} 13. h3 {[%clk 0:02:55.6]} 13... Bf5 {[%clk
0:02:22.5]} 14. Nc3 {[%clk 0:02:55.2]} 14... Nxc3 {[%clk 0:02:18.8]} 15. Qxc3
{[%clk 0:02:55]} 15... Rfb8 {[%clk 0:02:19.3]} 16. b3 {[%clk 0:02:55.1]} 16...
a5 {[%clk 0:02:19.4]} 17. Rec1 {[%clk 0:02:48.7]} 17... Bd7 {[%clk 0:02:19.1]}
18. Nd2 {[%clk 0:02:48.4]} 18... e6 {[%clk 0:02:10.4]} 19. h4 {[%clk 0:02:28.5]}
19... a4 {[%clk 0:02:07.9]} 20. h5 {[%clk 0:02:27.6]} 20... Bf8 {[%clk
0:02:06.3]} 21. Bg5 {[%clk 0:02:22.7]} 21... axb3 {[%clk 0:01:42.6]} 22. Nxb3
{[%clk 0:02:23.6]} 22... Ra3 {[%clk 0:01:31.4]} 23. Qd2 {[%clk 0:02:23.1]} 23...
Rba8 {[%clk 0:01:05.8]} 24. Nc5 {[%clk 0:02:21.2]} 24... Bc8 {[%clk 0:01:02.5]}
25. hxg6 {[%clk 0:02:15.7]} 25... hxg6 {[%clk 0:01:01.2]} 26. Bf6 {[%clk
0:02:13.5]} 26... Qa5 {[%clk 0:00:45.6]} 27. Qf4 {[%clk 0:02:10.8]} 27... Rxa2
{[%clk 0:00:44.3]} 28. Rxa2 {[%clk 0:02:09.9]} 28... Qxa2 {[%clk 0:00:45.2]} 29.
Kh2 {[%clk 0:02:08.7]} 29... Qe2 {[%clk 0:00:37.3]} 30. Rc3 {[%clk 0:01:51.1]}
30... Bg7 {[%clk 0:00:04.5]} 31. Bxg7 {[%clk 0:01:50.6]} 31... Kxg7 {[%clk
0:00:05.1]} 32. Qf6+ {[%clk 0:01:50.2]} 1-0

[Event "Late-Titled-Tuesday-Blitz-February-06-2024"]
[Site "Chess.com"]
[Date "2024.02.06"]
[Round "2"]
[White "trriinu"]
[Black "YurasovMat-2012"]
[Result "0-1"]
[WhiteElo "2201"]
[BlackElo "2681"]
[TimeControl "180+1"]
[EndTime "14:16:19 PST"]
[Termination "YurasovMat-2012 won on time"]

1. e4 {[%clk 0:03:00.6]} 1... e5 {[%clk 0:02:58.7]} 2. Nc3 {[%clk 0:02:59.4]}
2... Nf6 {[%clk 0:02:58.2]} 3. f4 {[%clk 0:02:59.7]} 3... d5 {[%clk 0:02:57.7]}
4. fxe5 {[%clk 0:03:00.1]} 4... Nxe4 {[%clk 0:02:57.7]} 5. Qf3 {[%clk
0:03:00.5]} 5... Nc6 {[%clk 0:02:55.8]} 6. d3 {[%clk 0:03:00.2]} 6... Nd4 {[%clk
0:02:39]} 7. Qf4 {[%clk 0:02:25.4]} 7... g5 {[%clk 0:02:32.5]} 8. Nxe4 {[%clk
0:02:05]} 8... gxf4 {[%clk 0:02:31.9]} 9. Nf6+ {[%clk 0:02:05.3]} 9... Qxf6
{[%clk 0:02:14.5]} 10. exf6 {[%clk 0:02:04.2]} 10... Nxc2+ {[%clk 0:02:15.4]}
11. Kd1 {[%clk 0:01:58.2]} 11... Nxa1 {[%clk 0:02:16.3]} 12. Bxf4 {[%clk
0:01:56.6]} 12... c5 {[%clk 0:02:01.1]} 13. Kc1 {[%clk 0:01:37.5]} 13... c4
{[%clk 0:01:56.9]} 14. Kb1 {[%clk 0:01:32.4]} 14... Bf5 {[%clk 0:01:56.3]} 15.
Kxa1 {[%clk 0:01:31.2]} 15... cxd3 {[%clk 0:01:55.7]} 16. Nf3 {[%clk 0:01:31.3]}
16... Rc8 {[%clk 0:01:55]} 17. Nd4 {[%clk 0:00:21.2]} 17... Be4 {[%clk
0:01:50.8]} 18. Nb5 {[%clk 0:00:15.1]} 18... a6 {[%clk 0:01:50.8]} 19. Nc3
{[%clk 0:00:09.9]} 19... Bb4 {[%clk 0:01:49.6]} 20. Na4 {[%clk 0:00:03.9]} 20...
O-O {[%clk 0:01:42.9]} 21. Nb6 {[%clk 0:00:03.4]} 21... Rc2 {[%clk 0:01:39.1]}
22. g4 {[%clk 0:00:01.7]} 22... Bxh1 {[%clk 0:01:38.5]} 0-1

[Event "Late-Titled-Tuesday-Blitz-February-06-2024"]
[Site "Chess.com"]
[Date "2024.02.06"]
[Round "2"]
[White "rcmz"]
[Black "j_coca"]
[Result "0-1"]
[WhiteElo "2143"]
[BlackElo "2454"]
[TimeControl "180+1"]
[EndTime "14:16:22 PST"]
[Termination "j_coca won by resignation"]

1. b4 {[%clk 0:03:00.9]} 1... Nf6 {[%clk 0:02:57.8]} 2. Bb2 {[%clk 0:03:00.8]}
2... g6 {[%clk 0:02:57.1]} 3. e3 {[%clk 0:03:00.7]} 3... Bg7 {[%clk 0:02:56.2]}
4. f4 {[%clk 0:03:00.7]} 4... O-O {[%clk 0:02:55.4]} 5. Nf3 {[%clk 0:03:00.7]}
5... d6 {[%clk 0:02:55.9]} 6. Be2 {[%clk 0:03:00.6]} 6... Nc6 {[%clk 0:02:56.3]}
7. b5 {[%clk 0:02:59.8]} 7... Nb8 {[%clk 0:02:56]} 8. O-O {[%clk 0:02:59]} 8...
c5 {[%clk 0:02:56.7]} 9. c4 {[%clk 0:02:58.2]} 9... Nbd7 {[%clk 0:02:55.4]} 10.
a4 {[%clk 0:02:56.8]} 10... b6 {[%clk 0:02:50]} 11. Qc2 {[%clk 0:02:54.7]} 11...
Bb7 {[%clk 0:02:50]} 12. Nc3 {[%clk 0:02:54.5]} 12... a5 {[%clk 0:02:49.1]} 13.
h3 {[%clk 0:02:40.3]} 13... e6 {[%clk 0:02:45.8]} 14. d3 {[%clk 0:02:34.1]}
14... d5 {[%clk 0:02:44.1]} 15. Rad1 {[%clk 0:02:23.2]} 15... Qe7 {[%clk
0:02:40]} 16. Ne5 {[%clk 0:02:11]} 16... Nxe5 {[%clk 0:02:37.9]} 17. fxe5 {[%clk
0:02:06.6]} 17... Nd7 {[%clk 0:02:38]} 18. d4 {[%clk 0:02:05]} 18... dxc4 {[%clk
0:02:31.4]} 19. Bxc4 {[%clk 0:01:58.1]} 19... cxd4 {[%clk 0:02:31.4]} 20. exd4
{[%clk 0:01:54.3]} 20... Rac8 {[%clk 0:02:31.8]} 21. Bd3 {[%clk 0:01:27.9]}
21... Qb4 {[%clk 0:02:27.4]} 22. Be2 {[%clk 0:01:12.1]} 22... f6 {[%clk
0:02:21.9]} 23. exf6 {[%clk 0:01:03.8]} 23... Rxf6 {[%clk 0:02:15.6]} 24. Rxf6
{[%clk 0:01:00.5]} 24... Bxf6 {[%clk 0:02:15.3]} 25. Qd2 {[%clk 0:00:58.4]}
25... Kg7 {[%clk 0:02:06.6]} 26. Nb1 {[%clk 0:00:50.8]} 26... Qxd2 {[%clk
0:02:03.3]} 27. Rxd2 {[%clk 0:00:49.1]} 27... Bd5 {[%clk 0:02:00.1]} 28. Nc3
{[%clk 0:00:47.1]} 28... Bb3 {[%clk 0:01:58]} 29. Bd1 {[%clk 0:00:45.2]} 29...
Bxd1 {[%clk 0:01:53.1]} 30. Rxd1 {[%clk 0:00:40.9]} 30... Rc4 {[%clk 0:01:53.6]}
31. Ne4 {[%clk 0:00:31.7]} 31... Rxa4 {[%clk 0:01:48.1]} 32. d5 {[%clk
0:00:26.5]} 32... Bxb2 {[%clk 0:01:46.7]} 33. dxe6 {[%clk 0:00:23]} 33... Nf6
{[%clk 0:01:46.3]} 34. Nxf6 {[%clk 0:00:20.2]} 34... Kxf6 {[%clk 0:01:46.3]} 35.
Rf1+ {[%clk 0:00:18.3]} 35... Kxe6 {[%clk 0:01:46.1]} 0-1